fUST/lending_fUST_20250929
["ID","MTS","AMOUNT","RATE_DAILY","PERIOD"]
[388370548,1759128663873,-480.0,0.00027397,7]
[388370549,1759128663883,-8467.032484,0.00027397,7]
[388370550,1759128663893,-480.0,0.00027397,7]
[388370551,1759128663902,-480.0,0.00027397,7]
[388370552,1759128663912,-480.0,0.00027397,7]
[388370553,1759128663922,-196.266576,0.00027397,7]
[388370554,1759128663932,-480.0,0.00027397,7]
[388370555,1759128663942,-480.0,0.00027397,7]
[388370556,1759128663951,-196.266576,0.00027397,7]
[388370557,1759128663960,-236.74548877,0.00027671,7]
[388370558,1759128663970,-550.99501382,0.00027671,7]
[388370559,1759128663980,-480.0,0.00027671,7]
[388370560,1759128663989,-4703.57,0.00027671,7]
[388370561,1759128663999,-1937.43,0.00027671,7]
[388370562,1759128664009,-1633.02,0.00027671,7]
[388370563,1759128664019,-480.0,0.00027671,7]
[388370564,1759128664028,-480.0,0.00027671,7]
[388370565,1759128664039,-480.0,0.00027671,7]
[388370566,1759128664049,-480.0,0.00027671,7]
[388370567,1759128664059,-480.0,0.00027671,7]
[388370568,1759128664069,-1672.86,0.00027671,7]
[388370569,1759128664080,-480.0,0.00027671,7]
[388370570,1759128664090,-2059.81,0.00027671,7]
[388370571,1759128664100,-480.0,0.00027671,7]
[388370572,1759128664110,-1079.43,0.00027671,7]
[388370573,1759128664119,-791.53,0.00027671,7]
[388370574,1759128664130,-480.0,0.00027671,7]
[388370575,1759128664140,-480.0,0.00027671,7]
[388370576,1759128664150,-480.0,0.00027671,7]
[388370577,1759128664160,-742.4,0.00027671,7]
[388370578,1759128664169,-816.1,0.00027671,7]
[388370579,1759128664179,-480.0,0.00027671,7]
[388370580,1759128664188,-480.0,0.00027671,7]
[388370581,1759128664197,-959.53,0.00027671,7]
[388370582,1759128664206,-480.0,0.00027671,7]
[388370583,1759128664215,-1905.59,0.00027671,7]
[388370584,1759128664224,-291.28727581,0.00027671,7]
[388370585,1759128664233,-480.0,0.00027671,7]
[388370586,1759128664243,-480.0,0.00027671,7]
[388370587,1759128664252,-480.0,0.00027671,7]
[388370588,1759128664261,-3633.89,0.00027671,7]
[388370589,1759128664270,-480.0,0.00027671,7]
[388370590,1759128664279,-480.0,0.00027671,7]
[388370591,1759128664289,-1564.23,0.00027671,7]
[388370592,1759128664298,-480.0,0.00027671,7]
[388370593,1759128664307,-819.69,0.00027671,7]
[388370594,1759128664317,-1009.05,0.00027671,7]
[388370595,1759128664330,-480.0,0.00027671,7]
[388370596,1759128664339,-588.8570978,0.00027671,7]
[388370597,1759128664350,-480.0,0.00027671,7]
[388370598,1759128664360,-2396.98,0.00027671,7]
[388370599,1759128664371,-516.92005338,0.00027671,7]
[388370600,1759128664381,-480.0,0.00027671,7]
[388370601,1759128664391,-1334.28,0.00027671,7]
[388370602,1759128664402,-480.0,0.00027671,7]
[388370603,1759128664414,-1330.93,0.00027671,7]
[388370604,1759128664424,-480.0,0.00027671,7]
[388370605,1759128664434,-480.0,0.00027671,7]
[388370606,1759128664443,-5104.06,0.00027671,7]
[388370607,1759128664453,-480.0,0.00027671,7]
[388370608,1759128664463,-569.9,0.00027671,7]
[388370609,1759128664473,-480.0,0.00027671,7]
[388370610,1759128664482,-1965.67,0.00027671,7]
[388370611,1759128664492,-575.08,0.00027671,7]
[388370612,1759128664501,-480.0,0.00027671,7]
[388370613,1759128664511,-974.92,0.00027671,7]
[388370614,1759128664520,-480.0,0.00027671,7]
[388370615,1759128664529,-212.44,0.00027671,7]
[388370616,1759128664540,-2829.97,0.00027671,7]
[388370617,1759128664550,-480.0,0.00027671,7]
[388370618,1759128664560,-251.48885793,0.00027671,7]
[388370619,1759128664571,-1118.15,0.00027671,7]
[388370620,1759128664580,-480.0,0.00027671,7]
[388370621,1759128664589,-3825.34,0.00027671,7]
[388370622,1759128664599,-480.0,0.00027671,7]
[388370623,1759128664608,-480.0,0.00027671,7]
[388370624,1759128664618,-306.69474286,0.00027671,7]
[388370625,1759128664627,-480.0,0.00027671,7]
[388370626,1759128664636,-2236.13,0.00027671,7]
[388370627,1759128664646,-847.37,0.00027671,7]
[388370628,1759128664656,-480.0,0.00027671,7]
[388370629,1759128664665,-480.0,0.00027671,7]
[388370630,1759128664675,-2051.31,0.00027671,7]
[388370631,1759128664684,-902.33,0.00027671,7]
[388370632,1759128664694,-480.0,0.00027671,7]
[388370633,1759128664703,-781.76,0.00027671,7]
[388370634,1759128664712,-7914.07,0.00027671,7]
[388370635,1759128664722,-480.0,0.00027671,7]
[388370636,1759128664731,-486.02023362,0.00027671,7]
[388370637,1759128664740,-481.07089848,0.00027671,7]
[388370638,1759128664750,-480.0,0.00027671,7]
[388370639,1759128664760,-480.0,0.00027671,7]
[388370640,1759128664769,-3409.13,0.00027671,7]
[388370641,1759128664779,-916.49,0.00027671,7]
[388370642,1759128664789,-480.0,0.00027671,7]
[388370643,1759128664799,-480.0,0.00027671,7]
[388370644,1759128664808,-551.24,0.00027671,7]
[388370645,1759128664818,-480.0,0.00027671,7]
[388370646,1759128664827,-480.0,0.00027671,7]
[388370647,1759128664837,-480.0,0.00027671,7]
[388370648,1759128664846,-480.0,0.00027671,7]
[388370649,1759128664856,-490.95,0.00027671,7]
[388370650,1759128664871,-2193.91,0.00027671,7]
[388370651,1759128664881,-3253.06,0.00027671,7]
[388370652,1759128664896,-922.81,0.00027671,7]
[388370653,1759128665040,-824.29,0.00027671,7]
[388370654,1759128665053,-480.0,0.00027671,7]
[388370655,1759128665063,-837.48,0.00027671,7]
[388370656,1759128665072,-523.55545063,0.00027671,7]
[388370657,1759128665082,-480.0,0.00027671,7]
[388370658,1759128665091,-882.5,0.00027671,7]
[388370659,1759128665100,-553.63,0.00027671,7]
[388370660,1759128665109,-480.0,0.00027671,7]
[388370661,1759128665119,-480.0,0.00027671,7]
[388370662,1759128665129,-480.0,0.00027671,7]
[388370663,1759128665139,-480.0,0.00027671,7]
[388370664,1759128665148,-897.11,0.00027671,7]
[388370665,1759128665159,-801.19,0.00027671,7]
[388370666,1759128665169,-990.29,0.00027671,7]
[388370667,1759128665180,-480.0,0.00027671,7]
[388370668,1759128665189,-480.0,0.00027671,7]
[388370669,1759128665198,-722.13,0.00027671,7]
[388370670,1759128665207,-585.67,0.00027671,7]
[388370671,1759128665216,-480.0,0.00027671,7]
[388370672,1759128665226,-610.29,0.00027671,7]
[388370673,1759128665235,-984.11,0.00027671,7]
[388370674,1759128665245,-1446.7,0.00027671,7]
[388370675,1759128665254,-637.35,0.00027671,7]
[388370676,1759128665264,-480.0,0.00027671,7]
[388370677,1759128665273,-480.0,0.00027671,7]
[388370678,1759128665283,-277.77769713,0.00027671,7]
[388370679,1759128665292,-2208.99,0.00027671,7]
[388370680,1759128665301,-582.08,0.00027671,7]
[388370681,1759128665311,-480.0,0.00027671,7]
[388370682,1759128665320,-939.9,0.00027671,7]
[388370683,1759128665335,-480.0,0.00027671,7]
[388370684,1759128665345,-3566.93,0.00027671,7]
[388370685,1759128665354,-1917.52,0.00027671,7]
[388370686,1759128665363,-398.29033028,0.00027671,7]
[388370687,1759128665373,-1321.69,0.00027671,7]
[388370688,1759128665382,-480.0,0.00027671,7]
[388370689,1759128665391,-480.0,0.00027671,7]
[388370690,1759128665400,-480.0,0.00027671,7]
[388370691,1759128665409,-1258.07,0.00027671,7]
[388370692,1759128665419,-485.81,0.00027671,7]
[388370693,1759128665428,-891.2,0.00027671,7]
[388370694,1759128665437,-480.0,0.00027671,7]
[388370695,1759128665446,-6874.54,0.00027671,3]
[388370696,1759128665455,-8788.1,0.00027671,7]
[388370697,1759128665464,-480.0,0.00027671,7]
[388370698,1759128665473,-480.0,0.00027671,7]
[388370699,1759128665483,-254.77,0.00027671,7]
[388370700,1759128665493,-203.9067553,0.00027671,7]
[388370701,1759128665503,-480.0,0.00027671,7]
[388370702,1759128665513,-150.0,0.00027673,5]
[388370703,1759128665524,-150.0,0.00027673,5]
[388370704,1759128665533,-293.0,0.00027683,2]
[388370705,1759128665544,-160.0,0.000277,2]
[388370706,1759128665553,-1008.4507085,0.0002776,5]
[388370707,1759128665563,-170.64745108,0.00027781,30]
[388370708,1759128665571,-1698.462945,0.000278,5]
[388370709,1759128665581,-800.0,0.00027811,2]
[388370710,1759128665591,-1000.0,0.0002782,5]
[388370711,1759128665600,-1000.0,0.00027821,5]
[388370712,1759128665610,-1000.0,0.00027821,5]
[388370713,1759128665619,-1000.0,0.00027821,2]
[388370714,1759128665628,-1000.0,0.00027821,5]
[388370715,1759128665639,-1000.0,0.00027821,5]
[388370716,1759128665648,-1000.0,0.00027821,5]
[388370717,1759128665658,-151.0,0.00027829,2]
[388370718,1759128665668,-808.65966565,0.00027831,2]
[388370719,1759128665677,-1000.0,0.0002784,5]
[388370720,1759128665687,-800.0,0.00027851,2]
[388370721,1759128665696,-1000.0,0.0002786,5]
[388370722,1759128665705,-1000.0,0.0002788,5]
[388370723,1759128665715,-1159.862772,0.0002788,5]
[388370724,1759128665724,-170.64745108,0.0002789,30]
[388370725,1759128665734,-208.0,0.00027891,7]
[388370726,1759128665743,-1000.0,0.000279,5]
[388370727,1759128665752,-1000.0,0.000279,5]
[388370728,1759128665762,-800.0,0.00027909,2]
[388370729,1759128665771,-853.03660688,0.00027913,2]
[388370730,1759128665781,-1000.0,0.00027921,5]
[388370731,1759128665790,-1000.0,0.00027921,5]
[388370732,1759128665800,-1000.0,0.00027921,5]
[388370733,1759128665809,-764.80018165,0.00027921,5]
[388370734,1759128665819,-1000.0,0.00027921,5]
[388370735,1759128665828,-579.45249051,0.00027921,5]
[388370736,1759128665838,-506.22808998,0.00027921,2]
[388370737,1759128665847,-1000.0,0.00027921,5]
[388370738,1759128665856,-1000.0,0.00027921,5]
[388370739,1759128665866,-1000.0,0.00027921,5]
[388370740,1759128665876,-1000.0,0.00027921,5]
[388370741,1759128665885,-39.03633311,0.00027921,5]
[388370742,1759128666211,-250.0,0.00027281,2]
[388370743,1759128666220,-960.96366689,0.00027921,5]
[388370744,1759128666230,-1000.0,0.00027921,5]
[388370745,1759128666239,-1031.14988873,0.00027921,5]
[388370746,1759128666249,-1000.0,0.00027921,5]
[388370747,1759128666258,-1000.0,0.00027921,5]
[388370748,1759128666268,-176.08494678,0.00027921,5]
[388370749,1759128666277,-1000.0,0.00027921,5]
[388370750,1759128666286,-1000.0,0.00027921,5]
[388370751,1759128666296,-1000.0,0.00027921,5]
[388370752,1759128666306,-264.30006476,0.00027921,5]
[388370753,1759128666315,-772.11820887,0.00027921,5]
[388370754,1759128666326,-1000.0,0.00027921,5]
[388370755,1759128666337,-1000.0,0.00027921,5]
[388370756,1759128666346,-1000.0,0.00027921,5]
[388370757,1759128666356,-1000.0,0.00027921,5]
[388370758,1759128666365,-412.45660149,0.00027921,5]
[388370759,1759128666375,-1000.0,0.00027921,5]
[388370760,1759128666384,-1000.0,0.00027921,5]
[388370761,1759128666394,-1000.0,0.00027921,5]
[388370762,1759128666406,-671.27725486,0.00027921,5]
[388370763,1759128666416,-1000.0,0.00027921,5]
[388370764,1759128666425,-1000.0,0.00027921,5]
[388370765,1759128666435,-1000.0,0.00027921,5]
[388370766,1759128666445,-1000.0,0.00027921,5]
[388370767,1759128666455,-1000.0,0.00027921,5]
[388370768,1759128666464,-1000.0,0.00027921,5]
[388370769,1759128666473,-1000.0,0.00027921,5]
[388370770,1759128666483,-1000.0,0.00027921,5]
[388370771,1759128666493,-1000.0,0.00027921,5]
[388370772,1759128666502,-1000.0,0.00027921,5]
[388370773,1759128666512,-1000.0,0.00027921,5]
[388370774,1759128666522,-1000.0,0.00027921,5]
[388370775,1759128666532,-1000.0,0.00027921,5]
[388370776,1759128666541,-1004.8061325,0.00027921,5]
[388370777,1759128666551,-1000.0,0.00027921,5]
[388370778,1759128666560,-1000.0,0.00027921,5]
[388370779,1759128666570,-1000.0,0.00027921,5]
[388370780,1759128666580,-721.0,0.00027921,2]
[388370781,1759128666590,-222.87936159,0.00027921,2]
[388370782,1759128666599,-500.0,0.00027921,2]
[388370783,1759128666609,-151.0,0.00027921,2]
[388370784,1759128666619,-151.0,0.00027921,2]
[388370785,1759128666628,-208.0,0.0002794,2]
[388370786,1759128666636,-2000.0,0.00027944,5]
[388370787,1759128666646,-1509.29855521,0.00027944,5]
[388370788,1759128666657,-2000.0,0.00027944,5]
[388370789,1759128666667,-2000.0,0.00027944,5]
[388370790,1759128666676,-2000.0,0.00027944,5]
[388370791,1759128666685,-862.32166532,0.00027944,2]
[388370792,1759128666695,-2000.0,0.00027944,5]
[388370793,1759128666704,-2000.0,0.00027944,5]
[388370794,1759128666713,-892.72027434,0.00027944,5]
[388370795,1759128666722,-2000.0,0.00027944,3]
[388370796,1759128666731,-2000.0,0.00027944,5]
[388370797,1759128666740,-200.0,0.00027944,10]
[388370798,1759128666749,-201.49218229,0.00027945,7]
[388370799,1759128666758,-245.0,0.00027945,7]
[388370800,1759128666769,-502.23478052,0.00027945,7]
[388370801,1759128666781,-247.49128938,0.00027945,7]
[388370802,1759128666790,-151.0,0.00027945,7]
[388370803,1759128666799,-531.68,0.00027945,7]
[388370804,1759128666808,-784.03,0.00027945,7]
[388370805,1759128666817,-480.0,0.00027945,7]
[388370806,1759128666827,-480.11,0.00027945,7]
[388370807,1759128666835,-526.44,0.00027945,7]
[388370808,1759128666845,-480.0,0.00027945,7]
[388370809,1759128666854,-480.0,0.00027945,7]
[388370810,1759128666863,-480.0,0.00027945,7]
[388370811,1759128666873,-480.0,0.00027945,7]
[388370812,1759128666882,-480.0,0.00027945,7]
[388370813,1759128666891,-549.04,0.00027945,7]
[388370814,1759128666900,-480.0,0.00027945,7]
[388370815,1759128666909,-480.0,0.00027945,7]
[388370816,1759128666919,-480.0,0.00027945,7]
[388370817,1759128666928,-480.0,0.00027945,7]
[388370818,1759128666937,-895.63,0.00027945,7]
[388370819,1759128666945,-480.0,0.00027945,7]
[388370820,1759128666955,-480.0,0.00027945,7]
[388370821,1759128666965,-400.0,0.00027945,7]
[388370822,1759128666974,-547.34,0.00027945,7]
[388370823,1759128666983,-547.34,0.00027945,7]
[388370824,1759128666992,-675.54,0.00027945,7]
[388370825,1759128667002,-400.0,0.00027945,7]
[388370826,1759128667011,-480.0,0.00027945,7]
[388370827,1759128667020,-480.0,0.00027945,7]
[388370828,1759128667029,-600.0,0.00027945,7]
[388370829,1759128667039,-497.16,0.00027945,7]
[388370830,1759128667049,-480.0,0.00027945,7]
[388370831,1759128667058,-480.0,0.00027945,7]
[388370832,1759128667067,-480.0,0.00027945,7]
[388370833,1759128667076,-217.00372313,0.00027945,7]
[388370834,1759128667228,-480.0,0.00027945,7]
[388370835,1759128667238,-480.0,0.00027945,7]
[388370836,1759128667248,-480.0,0.00027945,7]
[388370837,1759128667257,-480.0,0.00027945,7]
[388370838,1759128667266,-480.0,0.00027945,7]
[388370839,1759128667275,-769.77,0.00027945,7]
[388370840,1759128667287,-480.0,0.00027945,7]
[388370841,1759128667297,-357.24883556,0.00027945,7]
[388370842,1759128667306,-480.0,0.00027945,7]
[388370843,1759128667316,-480.0,0.00027945,7]
[388370844,1759128667328,-480.0,0.00027945,7]
[388370845,1759128667337,-480.0,0.00027945,7]
[388370846,1759128667347,-812.19,0.00027945,7]
[388370847,1759128667356,-294.55497568,0.00027945,7]
[388370848,1759128667366,-480.0,0.00027945,7]
[388370849,1759128667375,-153.28025374,0.00027945,7]
[388370850,1759128667385,-934.61,0.00027945,7]
[388370851,1759128667395,-480.0,0.00027945,7]
[388370852,1759128667404,-480.0,0.00027945,7]
[388370853,1759128667414,-687.55,0.00027945,7]
[388370854,1759128667423,-661.17,0.00027945,7]
[388370855,1759128667433,-480.0,0.00027945,7]
[388370856,1759128667443,-480.0,0.00027945,7]
[388370857,1759128667452,-480.0,0.00027945,7]
[388370858,1759128667461,-500.0,0.00027945,7]
[388370859,1759128667469,-500.0,0.00027945,7]
[388370860,1759128667478,-480.0,0.00027945,7]
[388370861,1759128667487,-480.0,0.00027945,7]
[388370862,1759128667498,-480.0,0.00027945,7]
[388370863,1759128667508,-797.85,0.00027945,7]
[388370864,1759128667517,-480.0,0.00027945,7]
[388370865,1759128667527,-674.33,0.00027945,7]
[388370866,1759128667537,-500.66,0.00027945,7]
[388370867,1759128667547,-480.0,0.00027945,7]
[388370868,1759128667556,-705.39,0.00027945,7]
[388370869,1759128667566,-480.0,0.00027945,7]
[388370870,1759128667576,-480.0,0.00027945,7]
[388370871,1759128667586,-480.0,0.00027945,7]
[388370872,1759128667595,-423.46784794,0.00027945,7]
[388370873,1759128667605,-480.0,0.00027945,7]
[388370874,1759128667615,-480.0,0.00027945,7]
[388370875,1759128667627,-624.26926609,0.00027945,7]
[388370876,1759128667637,-480.0,0.00027945,7]
[388370877,1759128667646,-480.0,0.00027945,7]
[388370878,1759128667655,-480.0,0.00027945,7]
[388370879,1759128667665,-480.0,0.00027945,7]
[388370880,1759128667675,-480.0,0.00027945,7]
[388370881,1759128667684,-480.0,0.00027945,7]
[388370882,1759128667694,-480.0,0.00027945,7]
[388370883,1759128667704,-531.84,0.00027945,7]
[388370884,1759128667713,-552.57,0.00027945,7]
[388370885,1759128667722,-480.0,0.00027945,7]
[388370886,1759128667731,-553.57,0.00027945,7]
[388370887,1759128667741,-480.0,0.00027945,7]
[388370888,1759128667751,-480.0,0.00027945,7]
[388370889,1759128667760,-480.0,0.00027945,7]
[388370890,1759128667769,-480.0,0.00027945,7]
[388370891,1759128667779,-480.0,0.00027945,7]
[388370892,1759128667788,-480.0,0.00027945,7]
[388370893,1759128667798,-480.0,0.00027945,7]
[388370894,1759128667808,-480.0,0.00027945,7]
[388370895,1759128667821,-525.5,0.00027945,7]
[388370896,1759128667834,-882.83,0.00027945,7]
[388370897,1759128667843,-575.31,0.00027945,7]
[388370898,1759128667851,-480.0,0.00027945,7]
[388370899,1759128667860,-480.0,0.00027945,7]
[388370900,1759128667870,-577.16,0.00027945,7]
[388370901,1759128667879,-480.0,0.00027945,7]
[388370902,1759128667888,-669.32,0.00027945,7]
[388370903,1759128667897,-480.0,0.00027945,7]
[388370904,1759128667907,-855.14,0.00027945,7]
[388370905,1759128667916,-669.16,0.00027945,7]
[388370906,1759128667926,-773.2,0.00027945,7]
[388370907,1759128667935,-480.0,0.00027945,7]
[388370908,1759128667944,-785.1,0.00027945,7]
[388370909,1759128667953,-480.0,0.00027945,7]
[388370910,1759128667963,-528.01,0.00027945,7]
[388370911,1759128667972,-480.0,0.00027945,7]
[388370912,1759128667981,-969.73,0.00027945,7]
[388370913,1759128667990,-480.0,0.00027945,7]
[388370914,1759128668000,-480.0,0.00027945,7]
[388370915,1759128668009,-480.0,0.00027945,7]
[388370916,1759128668019,-480.0,0.00027945,7]
[388370917,1759128668028,-480.0,0.00027945,7]
[388370918,1759128668037,-725.1,0.00027945,7]
[388370919,1759128668046,-777.59,0.00027945,7]
[388370920,1759128668055,-480.0,0.00027945,7]
[388370921,1759128668064,-480.0,0.00027945,7]
[388370922,1759128668073,-480.0,0.00027945,7]
[388370923,1759128668082,-1514.67,0.00027945,7]
[388370924,1759128668091,-1176.2,0.00027945,7]
[388370925,1759128668100,-731.05,0.00027945,7]
[388370926,1759128668110,-480.0,0.00027945,7]
[388370927,1759128668119,-520.0,0.00027945,3]
[388370928,1759128668128,-480.0,0.00027945,7]
[388370929,1759128668137,-535.71,0.00027945,7]
[388370930,1759128668147,-480.0,0.00027945,7]
[388370931,1759128668156,-523.15,0.00027945,7]
[388370932,1759128668166,-480.0,0.00027945,7]
[388370933,1759128668175,-992.04,0.00027945,7]
[388370934,1759128668185,-480.0,0.00027945,7]
[388370935,1759128668194,-481.68614414,0.00027945,7]
[388370936,1759128668202,-201.93823017,0.00027945,7]
[388370937,1759128668212,-480.0,0.00027945,7]
[388370938,1759128668221,-519.65,0.00027945,7]
[388370939,1759128668230,-480.0,0.00027945,7]
[388370940,1759128668239,-480.0,0.00027945,7]
[388370941,1759128668248,-507.86,0.00027945,7]
[388370942,1759128668259,-903.03,0.00027945,7]
[388370943,1759128668269,-592.56,0.00027945,7]
[388370944,1759128668279,-480.0,0.00027945,7]
[388370945,1759128668289,-959.41,0.00027945,7]
[388370946,1759128668299,-480.0,0.00027945,7]
[388370947,1759128668309,-579.87,0.00027945,7]
[388370948,1759128668319,-621.27,0.00027945,7]
[388370949,1759128668334,-522.05,0.00027945,7]
[388370950,1759128668343,-480.0,0.00027945,7]
[388370951,1759128668352,-480.0,0.00027945,7]
[388370952,1759128668362,-1108.83,0.00027945,7]
[388370953,1759128668372,-707.51,0.00027945,7]
[388370954,1759128668382,-480.0,0.00027945,7]
[388370955,1759128668391,-555.1,0.00027945,7]
[388370956,1759128668400,-480.0,0.00027945,7]
[388370957,1759128668410,-874.71,0.00027945,7]
[388370958,1759128668420,-480.0,0.00027945,7]
[388370959,1759128668430,-480.0,0.00027945,7]
[388370960,1759128668439,-848.74,0.00027945,7]
[388370961,1759128668449,-530.29101034,0.00027945,7]
[388370962,1759128668460,-923.12,0.00027945,7]
[388370963,1759128668469,-677.51,0.00027945,7]
[388370964,1759128668479,-621.16,0.00027945,7]
[388370965,1759128668490,-480.0,0.00027945,7]
[388370966,1759128668500,-768.05,0.00027945,7]
[388370967,1759128668510,-480.0,0.00027945,7]
[388370968,1759128668519,-480.0,0.00027945,7]
[388370969,1759128668528,-480.0,0.00027945,7]
[388370970,1759128668537,-649.28,0.00027945,7]
[388370971,1759128668547,-901.78,0.00027945,7]
[388370972,1759128668556,-674.0,0.00027945,7]
[388370973,1759128668566,-480.0,0.00027945,7]
[388370974,1759128668576,-480.0,0.00027945,7]
[388370975,1759128668586,-480.0,0.00027945,7]
[388370976,1759128668595,-1291.96,0.00027945,7]
[388370977,1759128668605,-714.2,0.00027945,7]
[388370978,1759128668615,-480.0,0.00027945,7]
[388370979,1759128668625,-831.68,0.00027945,7]
[388370980,1759128668635,-480.0,0.00027945,7]
[388370981,1759128668645,-480.0,0.00027945,7]
[388370982,1759128668655,-480.0,0.00027945,7]
[388370983,1759128668664,-818.83,0.00027945,7]
[388370984,1759128668674,-972.24,0.00027945,7]
[388370985,1759128668684,-251.0433777,0.00027945,7]
[388370986,1759128668694,-485.50318601,0.00027945,7]
[388370987,1759128668705,-1043.64,0.00027945,7]
[388370988,1759128668715,-482.05,0.00027945,7]
[388370989,1759128668725,-480.0,0.00027945,7]
[388370990,1759128668736,-758.71,0.00027945,7]
[388370991,1759128668745,-219.36670114,0.00027945,7]
[388370992,1759128668755,-480.0,0.00027945,7]
[388370993,1759128668765,-480.0,0.00027945,7]
[388370994,1759128668775,-964.09,0.00027945,7]
[388370995,1759128668785,-999.34,0.00027945,7]
[388370996,1759128668795,-480.0,0.00027945,7]
[388370997,1759128668805,-542.07,0.00027945,7]
[388370998,1759128668815,-480.0,0.00027945,7]
[388370999,1759128668826,-724.5,0.00027945,7]
[388371000,1759128668835,-480.0,0.00027945,7]
[388371001,1759128668846,-567.34,0.00027945,7]
[388371002,1759128668855,-1734.1,0.00027945,7]
[388371003,1759128668866,-531.84,0.00027945,7]
[388371004,1759128668876,-531.84,0.00027945,7]
[388371005,1759128668885,-1157.59,0.00027945,7]
[388371006,1759128668895,-1052.4,0.00027945,7]
[388371007,1759128668904,-581.73,0.00027945,7]
[388371008,1759128668914,-877.5,0.00027945,7]
[388371009,1759128668924,-480.0,0.00027945,7]
[388371010,1759128668934,-480.0,0.00027945,7]
[388371011,1759128668943,-2612.36,0.00027945,7]
[388371012,1759128668953,-480.0,0.00027945,7]
[388371013,1759128668962,-480.0,0.00027945,7]
[388371014,1759128668973,-480.0,0.00027945,7]
[388371015,1759128668983,-469.70766939,0.00027945,7]
[388371016,1759128668992,-480.0,0.00027945,7]
[388371017,1759128669002,-2720.18,0.00027945,7]
[388371018,1759128669012,-480.0,0.00027945,7]
[388371019,1759128669022,-564.69,0.00027945,7]
[388371020,1759128669032,-480.0,0.00027945,7]
[388371021,1759128669041,-1759.59,0.00027945,7]
[388371022,1759128669051,-657.08,0.00027945,7]
[388371023,1759128669061,-480.0,0.00027945,7]
[388371024,1759128669071,-492.92176985,0.00027945,7]
[388371025,1759128669081,-480.0,0.00027945,7]
[388371026,1759128669090,-544.02,0.00027945,7]
[388371027,1759128669100,-1323.45,0.00027945,7]
[388371028,1759128669110,-266.80394635,0.00027945,7]
[388371029,1759128669119,-563.44,0.00027945,7]
[388371030,1759128669129,-767.32,0.00027945,7]
[388371031,1759128669138,-480.0,0.00027945,7]
[388371032,1759128669148,-636.76,0.00027945,7]
[388371033,1759128669157,-851.3,0.00027945,7]
[388371034,1759128669166,-931.97,0.00027945,7]
[388371035,1759128669175,-15773.79,0.00027945,7]
[388371036,1759128669184,-460.18967431,0.00027945,7]
[388371037,1759128669193,-500.0,0.00027945,7]
[388371038,1759128669202,-480.0,0.00027945,7]
[388371039,1759128669211,-566.55,0.00027945,7]
[388371040,1759128669220,-480.0,0.00027945,7]
[388371041,1759128669229,-480.0,0.00027945,7]
[388371042,1759128669239,-480.0,0.00027945,7]
[388371043,1759128669249,-3501.86,0.00027945,7]
[388371044,1759128669258,-480.0,0.00027945,7]
[388371045,1759128669269,-480.0,0.00027945,7]
[388371046,1759128669279,-496.77,0.00027945,7]
[388371047,1759128669288,-480.0,0.00027945,7]